[Event "14th Poti Open-A 2019"]
[Site "Poti"]
[Date "2019.07.15"]
[Round "3.22"]
[White "Nurijanyan, Alex"]
[Black "Mchedlishvili, Ramaz"]
[Result "1-0"]
[ECO "B24"]
[WhiteElo "1610"]
[BlackElo "1441"]
[Annotator "NA RC"]
[PlyCount "119"]
[EventDate "2019.07.13"]
[EventType "swiss"]
[EventCountry "GEO"]
[SourceTitle "playchess.com"]
[Source "ChessBase"]
[SourceQuality "1"]
[TimeControl "40/5400+30:1800+30"]

1. e4 {[%emt 0:00:00]} c5 {[%emt 0:00:00]} 2. Nc3 {[%emt 0:00:00]} Nc6 {[%emt 0:00:00]} 3. Bb5 {[%emt 0:00:00]} a6 {[%emt 0:00:35]} 4. Bxc6 {[%emt 0:00:00]} bxc6 {[%emt 0:00:08]} 5. f4 {[%emt 0:00:00]} d6 {[%emt 0:00:37]} 6. Nf3 {[%emt 0:00:00]} Nf6 {[%emt 0:00:36]} 7. d3 {[%emt 0:00:06]} g6 {[%emt 0:01:01]} 8. O-O {[%emt 0:00:18]} Bg7 {[%emt 0:00:07]} 9. Qe1 {[%emt 0:00:18]} O-O {[%emt 0:01:03]} 10. f5 {[%emt 0:00:26]} e6 {[%emt 0:12:13]} 11. Qh4 {[%emt 0:01:26]} exf5 {[%emt 0:03:20]} 12. Bg5 {[%emt 0:00:18]} h6 {[%emt 0:04:43]} 13. Bxh6 {[%emt 0:00:07]} Bxh6 {[%emt 0:00:05]} 14. Qxh6 {[%emt 0:00:15]} Ng4 {[%emt 0:09:50]} 15. Qf4 {[%emt 0:01:22]} Kg7 {[%emt 0:05:48]} 16. exf5 {[%emt 0:03:20]} Bxf5 {[%emt 0:00:16]} 17. h3 {[%emt 0:00:07]} Nf6 {[%emt 0:00:56]} 18. g4 {[%emt 0:01:57]} Be6 {[%emt 0:02:35]} 19. Ng5 {[%emt 0:00:23]} Nd5 {[%emt 0:10:17]} 20. Nxd5 {[%emt 0:00:07]} cxd5 {[%emt 0:00:46]} 21. Rae1 {[%emt 0:00:32]} Qe7 {[%emt 0:02:04]} 22. b4 {[%emt 0:01:07]} cxb4 {[%emt 0:10:11]} 23. Qd4+ {[%emt 0:00:30]} Kg8 {[%emt 0:03:46]} 24. Rf6 {[%emt 0:02:40]} Qa7 {[%emt 0:01:00]} 25. Nxe6 {[%emt 0:00:27]} fxe6 {[%emt 0:00:17]} 26. Rxg6+ {[%emt 0:00:37]} Kh7 {[%emt 0:00:41]} 27. Qxa7+ {[%emt 0:00:15]} Rxa7 {[%emt 0:00:01]} 28. Rexe6 {[%emt 0:00:23]} Rc7 {[%emt 0:04:40]} 29. Rh6+ {[%emt 0:00:17]} Kg7 {[%emt 0:00:06]} 30. Reg6+ {[%emt 0:00:04]} Kf7 {[%emt 0:00:06]} 31. Rxd6 {[%emt 0:00:18]} Rxc2 {[%emt 0:00:54]} 32. Rhf6+ {[%emt 0:02:44]} Ke7 {[%emt 0:00:46]} 33. Rfe6+ {[%emt 0:00:17]} Kf7 {[%emt 0:00:14]} 34. Rxa6 {[%emt 0:00:47]} Rxa2 {[%emt 0:01:34]} 35. Rf6+ {[%emt 0:08:37]} Ke7 {[%emt 0:01:28]} 36. Rxa2 {[%emt 0:02:37]} Rxf6 {[%emt 0:01:43]} 37. Rb2 {[%emt 0:03:59]} Rb6 {[%emt 0:06:30]} 38. Kf2 {[%emt 0:01:23]} Kd6 {[%emt 0:03:13]} 39. Ke3 {[%emt 0:01:32]} Kc5 {[%emt 0:02:34]} 40. h4 {[%emt 0:00:13]} b3 {[%emt 0:04:15]} 41. g5 {[%emt 0:30:50]} Rb4 {[%emt 0:34:25]} 42. h5 {[%emt 0:01:32]} Rg4 {[%emt 0:01:21]} 43. g6 {[%emt 0:00:12]} Rg5 {[%emt 0:00:11]} 44. Rh2 {[%emt 0:00:31]} b2 {[%emt 0:00:14]} 45. Rxb2 {[%emt 0:00:17]} Rxh5 {[%emt 0:00:01]} 46. Rc2+ {[%emt 0:00:46]} Kd6 {[%emt 0:00:20]} 47. Rg2 {[%emt 0:00:09]} Rh8 {[%emt 0:00:11]} 48. Kf4 {[%emt 0:00:49]} Ke6 {[%emt 0:01:34]} 49. Kg5 {[%emt 0:02:01]} Rh3 {[%emt 0:01:10]} 50. d4 {[%emt 0:00:45]} Ke7 {[%emt 0:00:41]} 51. Rf2 {[%emt 0:00:31]} Rg3+ {[%emt 0:00:19]} 52. Kh6 {[%emt 0:00:23]} Rh3+ {[%emt 0:00:29]} 53. Kg5 {[%emt 0:01:06]} Rg3+ {[%emt 0:00:09]} 54. Kf5 {[%emt 0:00:05]} Rg1 {[%emt 0:02:06]} 55. Re2+ {[%emt 0:00:10]} Kd6 {[%emt 0:00:52]} 56. Re6+ {[%emt 0:00:39]} Kd7 {[%emt 0:00:01]} 57. Re5 {[%emt 0:00:13]} Rf1+ {[%emt 0:00:35]} 58. Kg5 {[%emt 0:00:09]} Rg1+ {[%emt 0:00:27]} 59. Kf6 {[%emt 0:04:15]} Rf1+ {[%emt 0:00:40]} 60. Rf5 {[%emt 0:00:16]} 1-0

[Event "14th Poti Open-A 2019"]
[Site "Poti"]
[Date "2019.07.15"]
[Round "3.23"]
[White "Kukhilava, Gubaz"]
[Black "Liponava, Zurab"]
[Result "1-0"]
[ECO "B40"]
[WhiteElo "1558"]
[BlackElo "1793"]
[Annotator "NA RC"]
[PlyCount "82"]
[EventDate "2019.07.13"]
[EventType "swiss"]
[EventCountry "GEO"]
[SourceTitle "playchess.com"]
[Source "ChessBase"]
[SourceQuality "1"]
[TimeControl "40/5400+30:1800+30"]

1. e4 {[%emt 0:00:00]} c5 {[%emt 0:00:00]} 2. Nf3 {[%emt 0:00:00]} e6 {[%emt 0:00:00]} 3. c4 {[%emt 0:00:02]} Nc6 {[%emt 0:00:28]} 4. Nc3 {[%emt 0:00:05]} d6 {[%emt 0:00:46]} 5. d4 {[%emt 0:02:51]} cxd4 {[%emt 0:00:27]} 6. Nxd4 {[%emt 0:00:02]} Nf6 {[%emt 0:00:19]} 7. Be2 {[%emt 0:00:07]} Be7 {[%emt 0:00:36]} 8. O-O {[%emt 0:00:03]} O-O {[%emt 0:01:35]} 9. Be3 {[%emt 0:00:06]} d5 {[%emt 0:01:01]} 10. cxd5 {[%emt 0:09:11]} exd5 {[%emt 0:00:08]} 11. exd5 {[%emt 0:01:46]} Nb4 {[%emt 0:00:26]} 12. Ndb5 {[%emt 0:06:33]} Nfxd5 {[%emt 0:08:49]} 13. Nxd5 {[%emt 0:13:51]} Nxd5 {[%emt 0:04:24]} 14. Bxa7 {[%emt 0:00:46]} Nf4 15. Bc4 {[%emt 0:16:35]} Bd7 {[%emt 0:16:49]} 16. Be3 {[%emt 0:02:44]} Ng6 {[%emt 0:02:39]} 17. Nc3 {[%emt 0:11:15]} Ne5 {[%emt 0:04:59]} 18. Bb3 {[%emt 0:03:26]} Ra6 {[%emt 0:03:27]} 19. Qe2 {[%emt 0:03:17]} Bd6 {[%emt 0:06:30]} 20. Rfd1 {[%emt 0:00:29]} Qh4 {[%emt 0:01:48]} 21. g3 {[%emt 0:06:33]} Qh3 {[%emt 0:01:00]} 22. f3 {[%emt 0:00:01]} Bb8 {[%emt 0:11:11]} 23. Ne4 {[%emt 0:04:23]} Qh5 {[%emt 0:04:02]} 24. Kg2 {[%emt 0:07:25]} Bh3+ {[%emt 0:07:12]} 25. Kf2 {[%emt 0:00:01]} Bf5 {[%emt 0:01:50]} 26. Rh1 {[%emt 0:03:22]} Bxe4 {[%emt 0:04:37]} 27. fxe4 {[%emt 0:00:03]} Rf6+ {[%emt 0:04:31]} 28. Bf4 {[%emt 0:00:39]} Ng4+ {[%emt 0:02:51]} 29. Kg2 {[%emt 0:00:52]} Bxf4 {[%emt 0:00:40]} 30. gxf4 {[%emt 0:00:01]} Rxf4 {[%emt 0:01:09]} 31. Raf1 {[%emt 0:00:02]} Ne3+ {[%emt 0:02:03]} 32. Qxe3 {[%emt 0:00:47]} Qg5+ {[%emt 0:00:07]} 33. Qg3 {[%emt 0:00:02]} Rg4 {[%emt 0:00:01]} 34. Rf5 {[%emt 0:00:53]} Rxg3+ {[%emt 0:01:24]} 35. hxg3 {[%emt 0:00:03]} Qd2+ {[%emt 0:00:17]} 36. Rf2 {[%emt 0:00:01]} Qd7 {[%emt 0:01:40]} 37. Rhf1 {[%emt 0:00:27]} Qe7 {[%emt 0:02:36]} 38. Bd5 {[%emt 0:01:13]} b5 {[%emt 0:02:08]} 39. Rxf7 {[%emt 0:02:15]} Rxf7 {[%emt 0:00:40]} 40. Rxf7 {[%emt 0:00:00]} Qb4 {[%emt 0:02:41]} 41. a3 {[%emt 0:29:53]} Kh8 1-0

[Event "14th Poti Open-A 2019"]
[Site "Poti"]
[Date "2019.07.15"]
[Round "3.24"]
[White "Chanturia, Lasha"]
[Black "Karamov, Anil"]
[Result "1-0"]
[ECO "B13"]
[WhiteElo "1742"]
[BlackElo "1559"]
[Annotator "NA RC"]
[PlyCount "75"]
[EventDate "2019.07.13"]
[EventType "swiss"]
[EventCountry "GEO"]
[SourceTitle "playchess.com"]
[Source "ChessBase"]
[SourceQuality "1"]
[TimeControl "40/5400+30:1800+30"]

1. e4 {[%emt 0:00:00]} c6 {[%emt 0:00:00]} 2. d4 {[%emt 0:00:26]} d5 {[%emt 0:00:07]} 3. exd5 {[%emt 0:00:15]} cxd5 {[%emt 0:00:21]} 4. Nf3 {[%emt 0:00:20]} Nc6 {[%emt 0:01:13]} 5. Bb5 {[%emt 0:02:02]} Nf6 {[%emt 0:04:40]} 6. O-O {[%emt 0:00:14]} Bg4 {[%emt 0:01:38]} 7. Qd3 {[%emt 0:05:17]} Bxf3 {[%emt 0:04:30]} 8. Qxf3 {[%emt 0:00:07]} e6 {[%emt 0:00:31]} 9. c3 {[%emt 0:04:32]} Be7 {[%emt 0:01:48]} 10. Nd2 {[%emt 0:01:18]} O-O {[%emt 0:00:41]} 11. Qh3 {[%emt 0:00:30]} a6 {[%emt 0:04:39]} 12. Bd3 {[%emt 0:00:18]} b5 {[%emt 0:04:10]} 13. Re1 {[%emt 0:01:57]} Qc7 {[%emt 0:09:22]} 14. Nf3 {[%emt 0:00:13]} Rfd8 15. Ne5 {[%emt 0:06:04]} g6 {[%emt 0:14:09]} 16. Bh6 {[%emt 0:07:46]} Nxe5 {[%emt 0:07:24]} 17. Rxe5 {[%emt 0:04:42]} Bd6 {[%emt 0:07:15]} 18. Re2 {[%emt 0:05:02]} Bf4 {[%emt 0:04:10]} 19. g3 {[%emt 0:03:46]} Bxh6 {[%emt 0:00:46]} 20. Qxh6 {[%emt 0:00:16]} Qe7 {[%emt 0:03:13]} 21. Qg5 {[%emt 0:02:46]} Kg7 {[%emt 0:01:16]} 22. Qd2 {[%emt 0:02:16]} Rdb8 {[%emt 0:01:27]} 23. a3 {[%emt 0:02:28]} Nd7 {[%emt 0:02:20]} 24. h4 {[%emt 0:00:54]} h5 {[%emt 0:00:57]} 25. Rae1 {[%emt 0:01:32]} Nb6 {[%emt 0:05:32]} 26. Qc2 {[%emt 0:03:14]} Re8 {[%emt 0:02:30]} 27. Re5 {[%emt 0:01:55]} Rad8 {[%emt 0:03:57]} 28. f4 {[%emt 0:05:30]} Qd7 {[%emt 0:02:20]} 29. Rg5 {[%emt 0:08:07]} Kf8 {[%emt 0:05:27]} 30. Bxg6 {[%emt 0:03:15]} fxg6 {[%emt 0:00:29]} 31. Qxg6 {[%emt 0:00:07]} Ke7 {[%emt 0:01:41]} 32. f5 {[%emt 0:09:36]} Kd6 {[%emt 0:01:19]} 33. fxe6 {[%emt 0:00:28]} Rxe6 {[%emt 0:00:30]} 34. Rxe6+ {[%emt 0:00:11]} Qxe6 {[%emt 0:00:08]} 35. Qxe6+ {[%emt 0:00:07]} Kxe6 {[%emt 0:00:02]} 36. Rg6+ {[%emt 0:00:10]} Kf5 {[%emt 0:01:15]} 37. Rxb6 {[%emt 0:00:50]} Re8 {[%emt 0:00:03]} 38. Kf2 {[%emt 0:00:26]} 1-0

[Event "14th Poti Open-A 2019"]
[Site "Poti"]
[Date "2019.07.15"]
[Round "3.25"]
[White "Lezhava, Beso"]
[Black "Farzaliev, Elnur"]
[Result "1/2-1/2"]
[ECO "D38"]
[WhiteElo "1391"]
[BlackElo "1327"]
[Annotator "NA RC"]
[PlyCount "66"]
[EventDate "2019.07.13"]
[EventType "swiss"]
[EventCountry "GEO"]
[SourceTitle "playchess.com"]
[Source "ChessBase"]
[SourceQuality "1"]
[TimeControl "40/5400+30:1800+30"]

1. d4 {[%emt 0:02:45]} Nf6 {[%emt 0:00:15]} 2. Nf3 {[%emt 0:00:08]} d5 {[%emt 0:00:16]} 3. c4 {[%emt 0:00:05]} e6 {[%emt 0:00:09]} 4. Nc3 {[%emt 0:00:07]} Bb4 {[%emt 0:01:27]} 5. e3 {[%emt 0:02:51]} O-O {[%emt 0:02:10]} 6. Bd3 {[%emt 0:00:25]} dxc4 {[%emt 0:01:08]} 7. Bxc4 {[%emt 0:00:09]} b6 {[%emt 0:02:05]} 8. O-O {[%emt 0:00:59]} Bb7 {[%emt 0:01:34]} 9. Qe2 {[%emt 0:01:16]} Nbd7 {[%emt 0:09:58]} 10. a3 {[%emt 0:00:53]} Bxc3 {[%emt 0:00:24]} 11. bxc3 {[%emt 0:00:03]} c5 {[%emt 0:02:55]} 12. Rd1 {[%emt 0:01:36]} Qc7 {[%emt 0:00:45]} 13. Bd3 {[%emt 0:01:00]} Ne4 {[%emt 0:21:05]} 14. Bb2 Rac8 {[%emt 0:06:43]} 15. Nd2 {[%emt 0:07:38]} Ndf6 {[%emt 0:07:03]} 16. f3 {[%emt 0:01:24]} Nxd2 {[%emt 0:10:28]} 17. Rxd2 {[%emt 0:00:16]} e5 {[%emt 0:03:10]} 18. dxe5 {[%emt 0:11:38]} Qxe5 {[%emt 0:00:29]} 19. c4 {[%emt 0:00:14]} Qe7 {[%emt 0:01:20]} 20. Rad1 {[%emt 0:00:31]} Rfe8 {[%emt 0:02:20]} 21. Bf5 {[%emt 0:02:26]} Rcd8 {[%emt 0:01:28]} 22. Rxd8 {[%emt 0:02:34]} Rxd8 {[%emt 0:00:07]} 23. Rxd8+ {[%emt 0:00:26]} Qxd8 {[%emt 0:00:02]} 24. Qd3 {[%emt 0:00:55]} Qxd3 {[%emt 0:00:12]} 25. Bxd3 {[%emt 0:00:03]} Nd7 {[%emt 0:03:59]} 26. Kf2 {[%emt 0:00:55]} g6 {[%emt 0:01:17]} 27. e4 {[%emt 0:01:33]} Kf8 {[%emt 0:00:55]} 28. Ke3 {[%emt 0:00:13]} Ke7 {[%emt 0:00:24]} 29. f4 {[%emt 0:00:27]} a6 {[%emt 0:06:37]} 30. g4 {[%emt 0:00:55]} Bc6 {[%emt 0:03:05]} 31. g5 {[%emt 0:02:19]} b5 {[%emt 0:01:18]} 32. f5 {[%emt 0:02:08]} Nb6 {[%emt 0:04:50]} 33. cxb5 {[%emt 0:15:13]} axb5 {[%emt 0:00:19]} 1/2-1/2

[Event "14th Poti Open-A 2019"]
[Site "Poti"]
[Date "2019.07.15"]
[Round "3.26"]
[White "Dvalishvili, Akaki"]
[Black "Apkhazava, Mikheil"]
[Result "1-0"]
[ECO "A06"]
[WhiteElo "1371"]
[BlackElo "1310"]
[Annotator "NA RC"]
[PlyCount "53"]
[EventDate "2019.07.13"]
[EventType "swiss"]
[EventCountry "GEO"]
[SourceTitle "playchess.com"]
[Source "ChessBase"]
[SourceQuality "1"]
[TimeControl "40/5400+30:1800+30"]

1. Nf3 d5 2. d4 e6 3. c4 c6 4. e3 f5 5. Ne5 Nf6 6. cxd5 exd5 7. Be2 Bd6 8. O-O O-O 9. Nd2 Ne4 10. f3 Nxd2 11. Qxd2 Nd7 12. f4 Nf6 13. Bf3 Ne4 14. Bxe4 fxe4 15. b3 Be6 16. Bb2 Qe8 17. Qe2 Qe7 18. Rf2 Bxe5 19. dxe5 b6 20. g4 g6 21. Raf1 Qd7 22. f5 gxf5 23. gxf5 Rxf5 24. Qg4+ Kh8 25. Qxf5 Bxf5 26. e6+ Qg7+ 27. Bxg7+ 1-0

[Event "14th Poti Open-A 2019"]
[Site "Poti"]
[Date "2019.07.16"]
[Round "5.5"]
[White "Arabidze, Meri"]
[Black "Babujian, Levon"]
[Result "0-1"]
[ECO "D38"]
[WhiteElo "2402"]
[BlackElo "2469"]
[Annotator "RC"]
[PlyCount "132"]
[EventDate "2019.07.13"]
[EventType "swiss"]
[EventCountry "GEO"]
[SourceTitle "playchess.com"]
[Source "ChessBase"]
[SourceQuality "1"]
[TimeControl "40/5400+30:1800+30"]

1. d4 {[%emt 0:00:00]} d5 {[%emt 0:00:00]} 2. c4 {[%emt 0:00:00]} e6 {[%emt 0:00:00]} 3. Nc3 {[%emt 0:00:00]} Nf6 {[%emt 0:00:00]} 4. Nf3 {[%emt 0:00:35]} Bb4 {[%emt 0:00:00]} 5. Bg5 {[%emt 0:00:17]} Nbd7 {[%emt 0:01:28]} 6. cxd5 {[%emt 0:00:18]} exd5 {[%emt 0:00:06]} 7. e3 {[%emt 0:00:10]} c5 {[%emt 0:00:40]} 8. Be2 {[%emt 0:00:33]} Qa5 {[%emt 0:00:46]} 9. O-O {[%emt 0:01:23]} c4 {[%emt 0:00:11]} 10. Qc2 {[%emt 0:01:02]} O-O {[%emt 0:03:25]} 11. Nd2 {[%emt 0:04:59]} Re8 {[%emt 0:00:48]} 12. Bf3 {[%emt 0:07:33]} Bxc3 {[%emt 0:01:15]} 13. bxc3 {[%emt 0:00:44]} Ne4 {[%emt 0:02:10]} 14. Bxe4 {[%emt 0:08:04]} dxe4 {[%emt 0:00:44]} 15. Bh4 {[%emt 0:00:08]} Nb6 {[%emt 0:01:35]} 16. f3 {[%emt 0:19:30]} exf3 17. Rxf3 {[%emt 0:00:43]} Qh5 {[%emt 0:02:28]} 18. Bf2 {[%emt 0:01:55]} Bg4 {[%emt 0:00:18]} 19. Rg3 {[%emt 0:06:26]} Be2 {[%emt 0:01:22]} 20. e4 {[%emt 0:01:13]} f5 {[%emt 0:03:09]} 21. e5 {[%emt 0:10:40]} Rac8 {[%emt 0:02:20]} 22. Qb2 {[%emt 0:04:59]} Bd3 {[%emt 0:04:54]} 23. Nb3 {[%emt 0:03:15]} Na4 {[%emt 0:05:47]} 24. Qd2 {[%emt 0:00:28]} Be4 {[%emt 0:01:02]} 25. Nc5 {[%emt 0:04:32]} Nxc5 {[%emt 0:00:40]} 26. dxc5 {[%emt 0:00:03]} Rcd8 {[%emt 0:01:04]} 27. Bd4 {[%emt 0:00:09]} Re6 {[%emt 0:00:31]} 28. Re1 {[%emt 0:02:27]} h6 {[%emt 0:00:31]} 29. Qf4 {[%emt 0:05:15]} Rf8 {[%emt 0:00:32]} 30. a4 {[%emt 0:03:21]} a5 {[%emt 0:00:44]} 31. Qf1 {[%emt 0:02:35]} Bd5 {[%emt 0:01:21]} 32. Qf4 {[%emt 0:01:18]} Kh7 {[%emt 0:01:17]} 33. h4 {[%emt 0:00:52]} Qe8 {[%emt 0:00:24]} 34. Ra1 {[%emt 0:01:39]} Rf7 {[%emt 0:00:51]} 35. Ra2 {[%emt 0:00:53]} Bc6 {[%emt 0:00:12]} 36. h5 {[%emt 0:03:26]} Rf8 {[%emt 0:01:08]} 37. Rh3 {[%emt 0:00:37]} Bxa4 {[%emt 0:00:27]} 38. Qf1 {[%emt 0:01:00]} f4 {[%emt 0:03:24]} 39. Qa1 {[%emt 0:05:38]} Bc6 {[%emt 0:00:17]} 40. Qb1+ {[%emt 0:00:00]} Kh8 {[%emt 0:00:00]} 41. Rxa5 {[%emt 0:01:21]} Qd8 {[%emt 0:01:34]} 42. Ra2 {[%emt 0:04:50]} Qg5 {[%emt 0:02:26]} 43. Qc1 {[%emt 0:03:52]} Qg4 {[%emt 0:01:18]} 44. Qf1 {[%emt 0:03:11]} Bd5 {[%emt 0:02:22]} 45. Kh2 {[%emt 0:01:55]} Rf5 {[%emt 0:01:30]} 46. Rf2 {[%emt 0:05:58]} Re8 {[%emt 0:03:18]} 47. Qe2 {[%emt 0:04:04]} Qg5 {[%emt 0:00:39]} 48. Qf1 {[%emt 0:00:31]} Ref8 {[%emt 0:01:21]} 49. Qe1 {[%emt 0:03:04]} Be6 {[%emt 0:00:32]} 50. Kh1 {[%emt 0:03:16]} Ra8 {[%emt 0:01:15]} 51. Qc1 {[%emt 0:02:46]} Rf7 {[%emt 0:02:41]} 52. Rhf3 {[%emt 0:00:23]} Raf8 {[%emt 0:01:59]} 53. Kg1 {[%emt 0:00:35]} Bg4 {[%emt 0:00:49]} 54. e6 {[%emt 0:00:28]} Bxe6 {[%emt 0:00:04]} 55. Re2 {[%emt 0:00:38]} Bg4 {[%emt 0:02:57]} 56. Re5 {[%emt 0:00:04]} Rf5 {[%emt 0:00:19]} 57. Rxf5 {[%emt 0:00:58]} Qxf5 {[%emt 0:00:23]} 58. Rf2 {[%emt 0:00:28]} Bxh5 {[%emt 0:00:19]} 59. Qb2 {[%emt 0:01:24]} Rf7 {[%emt 0:01:10]} 60. Qb6 {[%emt 0:00:18]} Kh7 {[%emt 0:00:16]} 61. c6 {[%emt 0:00:35]} bxc6 {[%emt 0:00:46]} 62. Qxc6 {[%emt 0:00:04]} Re7 {[%emt 0:03:56]} 63. Rf1 {[%emt 0:01:05]} f3 {[%emt 0:00:37]} 64. gxf3 {[%emt 0:00:57]} Re6 {[%emt 0:00:35]} 65. Qb7 {[%emt 0:00:32]} Qg5+ {[%emt 0:00:10]} 66. Kf2 {[%emt 0:00:28]} Qh4+ {[%emt 0:00:07]} 0-1

[Event "14th Poti Open-A 2019"]
[Site "Poti"]
[Date "2019.07.16"]
[Round "5.6"]
[White "Nigalidze, Gaioz"]
[Black "Botoyan, Smbat"]
[Result "1-0"]
[ECO "D32"]
[WhiteElo "2563"]
[BlackElo "2240"]
[Annotator "RC"]
[PlyCount "75"]
[EventDate "2019.07.13"]
[EventType "swiss"]
[EventCountry "GEO"]
[SourceTitle "playchess.com"]
[Source "ChessBase"]
[SourceQuality "1"]
[TimeControl "40/5400+30:1800+30"]

1. d4 {[%emt 0:00:00]} d5 {[%emt 0:04:57]} 2. c4 {[%emt 0:00:00]} e6 {[%emt 0:00:11]} 3. Nc3 {[%emt 0:00:00]} c5 {[%emt 0:00:08]} 4. e3 {[%emt 0:02:04]} Nf6 {[%emt 0:00:10]} 5. Nf3 {[%emt 0:00:03]} Nc6 {[%emt 0:00:54]} 6. a3 {[%emt 0:00:05]} a6 {[%emt 0:00:42]} 7. Be2 {[%emt 0:06:28]} Bd6 {[%emt 0:11:37]} 8. cxd5 {[%emt 0:13:49]} exd5 {[%emt 0:01:24]} 9. dxc5 {[%emt 0:00:07]} Bxc5 {[%emt 0:00:03]} 10. b4 {[%emt 0:00:56]} Bd6 {[%emt 0:05:47]} 11. O-O {[%emt 0:00:36]} O-O {[%emt 0:00:04]} 12. Bb2 {[%emt 0:01:08]} Re8 {[%emt 0:00:03]} 13. Qd3 {[%emt 0:15:21]} Ne5 {[%emt 0:25:49]} 14. Nxe5 {[%emt 0:01:38]} Bxe5 {[%emt 0:00:11]} 15. Na4 {[%emt 0:09:19]} Bd7 {[%emt 0:10:25]} 16. Bxe5 {[%emt 0:01:55]} Rxe5 {[%emt 0:00:13]} 17. Nc3 {[%emt 0:04:50]} Bc6 {[%emt 0:04:11]} 18. Rfd1 {[%emt 0:18:26]} Qe7 {[%emt 0:00:53]} 19. Bf3 {[%emt 0:01:25]} Ne4 {[%emt 0:01:14]} 20. Bxe4 {[%emt 0:04:21]} dxe4 {[%emt 0:00:06]} 21. Qd6 {[%emt 0:00:47]} Qxd6 {[%emt 0:03:00]} 22. Rxd6 {[%emt 0:00:07]} a5 {[%emt 0:00:08]} 23. Rb1 {[%emt 0:05:13]} axb4 {[%emt 0:05:03]} 24. axb4 {[%emt 0:00:01]} Kf8 {[%emt 0:03:11]} 25. Rd4 {[%emt 0:01:53]} Ra3 {[%emt 0:01:12]} 26. Rc4 {[%emt 0:00:15]} f5 {[%emt 0:04:45]} 27. h4 {[%emt 0:01:54]} Bb5 {[%emt 0:04:44]} 28. Nxb5 {[%emt 0:03:53]} Rxb5 {[%emt 0:00:04]} 29. Rd1 {[%emt 0:00:14]} Rd3 {[%emt 0:03:24]} 30. Rxd3 {[%emt 0:00:04]} exd3 {[%emt 0:00:02]} 31. Kf1 {[%emt 0:00:08]} d2 {[%emt 0:02:50]} 32. Ke2 {[%emt 0:00:08]} Rd5 {[%emt 0:01:10]} 33. Kd1 {[%emt 0:01:36]} b6 {[%emt 0:04:18]} 34. Rc2 {[%emt 0:04:25]} Rd3 {[%emt 0:01:01]} 35. Rxd2 {[%emt 0:00:41]} Rb3 {[%emt 0:00:06]} 36. Rd4 {[%emt 0:00:08]} Rb2 {[%emt 0:00:17]} 37. Rf4 {[%emt 0:00:55]} g6 {[%emt 0:01:41]} 38. g4 {[%emt 0:00:03]} 1-0